fUSD/lending_fUSD_20250514
["ID","MTS","AMOUNT","RATE_DAILY","PERIOD"]
[360987129,1747183841110,-400.0,0.00010958,2]
[360987130,1747183841119,-400.0,0.00010958,2]
[360987132,1747183841133,-400.0,0.00010958,2]
[360987134,1747183841143,-883.28,0.00010958,2]
[360987136,1747183841151,-513.23,0.00010958,2]
[360987138,1747183841160,-400.0,0.00010958,2]
[360987140,1747183841170,-400.0,0.00010958,2]
[360987142,1747183841179,-400.0,0.00010958,2]
[360987144,1747183841188,-766.98,0.00010958,2]
[360987146,1747183841196,-400.0,0.00010958,2]
[360987148,1747183841206,-400.0,0.00010958,2]
[360987150,1747183841215,-400.0,0.00010958,2]
[360987152,1747183841223,-400.0,0.00010958,2]
[360987154,1747183841232,-400.0,0.00010958,2]
[360987156,1747183841243,-460.94173905,0.00010958,2]
[360987158,1747183841251,-431.38,0.00010958,2]
[360987160,1747183841261,-400.0,0.00010958,2]
[360987162,1747183841270,-400.0,0.00010958,2]
[360987164,1747183841279,-400.0,0.00010958,2]
[360987166,1747183841289,-400.0,0.00010958,2]
[360987168,1747183841298,-590.91,0.00010958,2]
[360987170,1747183841308,-400.0,0.00010958,2]
[360987172,1747183841317,-524.11454563,0.00010958,2]
[360987174,1747183841326,-400.0,0.00010958,2]
[360987176,1747183841336,-912.86,0.00010958,2]
[360987178,1747183841345,-461.86,0.00010958,2]
[360987180,1747183841354,-400.0,0.00010958,2]
[360987182,1747183841363,-400.0,0.00010958,2]
[360987184,1747183841372,-400.0,0.00010958,2]
[360987185,1747183841385,-400.0,0.00010958,2]
[360987187,1747183841395,-510.52403256,0.00010958,2]
[360987189,1747183841404,-400.0,0.00010958,2]
[360987191,1747183841413,-400.0,0.00010958,2]
[360987193,1747183841422,-413.02,0.00010958,2]
[360987195,1747183841432,-172.45265597,0.00010958,2]
[360987197,1747183841441,-400.0,0.00010958,2]
[360987199,1747183841450,-400.0,0.00010958,2]
[360987201,1747183841459,-400.0,0.00010958,2]
[360987203,1747183841468,-400.0,0.00010958,2]
[360987205,1747183841477,-400.0,0.00010958,2]
[360987207,1747183841487,-400.0,0.00010958,2]
[360987209,1747183841497,-854.67,0.00010958,2]
[360987211,1747183841506,-400.0,0.00010958,2]
[360987213,1747183841515,-488.13,0.00010958,2]
[360987215,1747183841524,-151.51512901,0.00010958,2]
[360987217,1747183841534,-400.0,0.00010958,2]
[360987219,1747183841543,-865.49,0.00010958,2]
[360987221,1747183841553,-400.0,0.00010958,2]
[360987223,1747183841562,-400.0,0.00010958,2]
[360987225,1747183841572,-511.99,0.00010958,2]
[360987227,1747183841581,-400.0,0.00010958,2]
[360987229,1747183841591,-911.53,0.00010958,2]
[360987231,1747183841600,-400.0,0.00010958,2]
[360987233,1747183841609,-400.0,0.00010958,2]
[360987235,1747183841618,-400.0,0.00010958,2]
[360987237,1747183841629,-465.55,0.00010958,2]
[360987239,1747183841638,-400.0,0.00010958,2]
[360987241,1747183841648,-400.0,0.00010958,2]
[360987243,1747183841657,-400.0,0.00010958,2]
[360987245,1747183841667,-400.0,0.00010958,2]
[360987247,1747183841676,-400.0,0.00010958,2]
[360987249,1747183841685,-467.85,0.00010958,2]
[360987251,1747183841695,-590.14,0.00010958,2]
[360987253,1747183841704,-400.0,0.00010958,2]
[360987255,1747183841713,-400.0,0.00010958,2]
[360987257,1747183841723,-400.0,0.00010958,2]
[360987259,1747183841735,-400.0,0.00010958,2]
[360987261,1747183841745,-400.0,0.00010958,2]
[360987263,1747183841754,-400.0,0.00010958,2]
[360987265,1747183841763,-516.82,0.00010958,2]
[360987267,1747183841772,-438.09,0.00010958,2]
[360987269,1747183841782,-400.0,0.00010958,2]
[360987271,1747183841791,-641.87,0.00010958,2]
[360987273,1747183841801,-400.0,0.00010958,2]
[360987275,1747183841812,-400.0,0.00010958,2]
[360987277,1747183841822,-400.0,0.00010958,2]
[360987279,1747183841831,-880.99,0.00010958,2]
[360987281,1747183841840,-470.42,0.00010958,2]
[360987283,1747183841850,-908.67,0.00010958,2]
[360987285,1747183841859,-1292.36,0.00010958,2]
[360987287,1747183841868,-949.45,0.00010958,2]
[360987289,1747183841879,-497.54,0.00010958,2]
[360987291,1747183841891,-866.71,0.00010958,2]
[360987293,1747183841900,-1485.65,0.00010958,2]
[360987295,1747183841909,-400.0,0.00010958,2]
[360987297,1747183841918,-528.87,0.00010958,2]
[360987299,1747183841927,-400.78,0.00010958,2]
[360987301,1747183841937,-400.6647806,0.00010958,2]
[360987303,1747183841946,-543.62282033,0.00010958,2]
[360987305,1747183841955,-659.6,0.00010958,2]
[360987307,1747183841964,-435.51,0.00010958,2]
[360987309,1747183841974,-400.0,0.00010958,2]
[360987311,1747183841983,-496.26,0.00010958,2]
[360987313,1747183841993,-900.37,0.00010958,2]
[360987315,1747183842002,-400.0,0.00010958,2]
[360987317,1747183842011,-461.26,0.00010958,2]
[360987319,1747183842020,-400.0,0.00010958,2]
[360987321,1747183842030,-579.62,0.00010958,2]
[360987323,1747183842039,-400.0,0.00010958,2]
[360987324,1747183842048,-804.35,0.00010958,2]
[360987326,1747183842057,-400.0,0.00010958,2]
[360987328,1747183842066,-194.46960887,0.00010958,2]
[360987330,1747183842075,-841.14,0.00010958,2]
[360987332,1747183842084,-408.39922,0.00010958,2]
[360987334,1747183842093,-979.95,0.00010958,2]
[360987336,1747183842102,-400.0,0.00010958,2]
[360987338,1747183842111,-400.0,0.00010958,2]
[360987340,1747183842120,-400.0,0.00010958,2]
[360987342,1747183842130,-400.0,0.00010958,2]
[360987344,1747183842139,-400.0,0.00010958,2]
[360987346,1747183842148,-400.0,0.00010958,2]
[360987348,1747183842158,-490.89705602,0.00010958,2]
[360987350,1747183842168,-591.3,0.00010958,2]
[360987352,1747183842178,-400.0,0.00010958,2]
[360987354,1747183842187,-400.0,0.00010958,2]
[360987356,1747183842196,-400.0,0.00010958,2]
[360987358,1747183842206,-400.0,0.00010958,2]
[360987360,1747183842215,-524.31,0.00010958,2]
[360987362,1747183842224,-648.33,0.00010958,2]
[360987364,1747183842233,-400.0,0.00010958,2]
[360987366,1747183842242,-400.0,0.00010958,2]
[360987368,1747183842252,-400.0,0.00010958,2]
[360987370,1747183842261,-400.0,0.00010958,2]
[360987372,1747183842270,-1623.24,0.00010958,2]
[360987374,1747183842279,-1178.33,0.00010958,2]
[360987376,1747183842290,-400.0,0.00010958,2]
[360987378,1747183842301,-426.45,0.00010958,2]
[360987379,1747183842312,-400.0,0.00010958,2]
[360987381,1747183842321,-400.0,0.00010958,2]
[360987383,1747183842330,-825.11,0.00010958,2]
[360987385,1747183842340,-400.0,0.00010958,2]
[360987387,1747183842349,-609.4,0.00010958,2]
[360987389,1747183842358,-400.0,0.00010958,2]
[360987391,1747183842367,-753.39,0.00010958,2]
[360987393,1747183842377,-400.0,0.00010958,2]
[360987395,1747183842386,-731.63,0.00010958,2]
[360987397,1747183842398,-400.0,0.00010958,2]
[360987399,1747183842408,-400.0,0.00010958,2]
[360987401,1747183842417,-400.0,0.00010958,2]
[360987403,1747183842426,-826.26,0.00010958,2]
[360987405,1747183842437,-989.05,0.00010958,2]
[360987408,1747183842459,-400.0,0.00010958,2]
[360987410,1747183842481,-918.88,0.00010958,2]
[360987412,1747183842491,-400.0,0.00010958,2]
[360987413,1747183842500,-400.0,0.00010958,2]
[360987415,1747183842509,-400.0,0.00010958,2]
[360987417,1747183842519,-827.32,0.00010958,2]
[360987420,1747183842529,-400.0,0.00010958,2]
[360987422,1747183842539,-400.0,0.00010958,2]
[360987423,1747183842548,-400.0,0.00010958,2]
[360987426,1747183842558,-417.74,0.00010958,2]
[360987428,1747183842567,-400.0,0.00010958,2]
[360987429,1747183842576,-923.64,0.00010958,2]
[360987431,1747183842586,-400.0,0.00010958,2]
[360987434,1747183842596,-400.0,0.00010958,2]
[360987436,1747183842606,-1117.56,0.00010958,2]
[360987438,1747183842616,-994.29,0.00010958,2]
[360987440,1747183842626,-616.36,0.00010958,2]
[360987441,1747183842636,-1078.78,0.00010958,2]
[360987443,1747183842646,-400.0,0.00010958,2]
[360987445,1747183842655,-1340.77,0.00010958,2]
[360987447,1747183842665,-541.80496007,0.00010958,2]
[360987449,1747183842675,-400.0,0.00010958,2]
[360987451,1747183842685,-400.0,0.00010958,2]
[360987453,1747183842695,-950.25,0.00010958,2]
[360987456,1747183842705,-400.0,0.00010958,2]
[360987458,1747183842714,-400.0,0.00010958,2]
[360987459,1747183842723,-400.0,0.00010958,2]
[360987461,1747183842736,-595.48,0.00010958,2]
[360987464,1747183842746,-400.0,0.00010958,2]
[360987466,1747183842755,-400.0,0.00010958,2]
[360987467,1747183842765,-400.0,0.00010958,2]
[360987469,1747183842776,-400.0,0.00010958,2]
[360987471,1747183842785,-684.5,0.00010958,2]
[360987474,1747183842795,-400.0,0.00010958,2]
[360987476,1747183842804,-400.0,0.00010958,2]
[360987478,1747183842815,-400.0,0.00010958,2]
[360987479,1747183842824,-400.0,0.00010958,2]
[360987499,1747183843004,-400.0,0.00010958,2]
[360987502,1747183843022,-592.73,0.00010958,2]
[360987504,1747183843032,-400.0,0.00010958,2]
[360987506,1747183843042,-443.13,0.00010958,2]
[360987507,1747183843052,-400.0,0.00010958,2]
[360987509,1747183843061,-213.91045094,0.00010958,2]
[360987511,1747183843071,-400.0,0.00010958,2]
[360987513,1747183843080,-189.15012414,0.00010958,2]
[360987515,1747183843090,-451.0,0.00010958,2]
[360987517,1747183843100,-440.47,0.00010958,2]
[360987519,1747183843109,-400.0,0.00010958,2]
[360987521,1747183843118,-972.69,0.00010958,2]
[360987523,1747183843131,-571.77,0.00010958,2]
[360987525,1747183843141,-979.04,0.00010958,2]
[360987527,1747183843149,-400.0,0.00010958,2]
[360987529,1747183843159,-500.0,0.00010958,2]
[360987532,1747183843168,-400.0,0.00010958,2]
[360987535,1747183843177,-400.0,0.00010958,2]
[360987537,1747183843186,-400.0,0.00010958,2]
[360987539,1747183843195,-400.0,0.00010958,2]
[360987540,1747183843205,-1466.92,0.00010958,2]
[360987542,1747183843214,-400.0,0.00010958,2]
[360987544,1747183843223,-1493.1,0.00010958,2]
[360987546,1747183843233,-400.0,0.00010958,2]
[360987548,1747183843242,-400.0,0.00010958,2]
[360987550,1747183843251,-545.63598715,0.00010958,2]
[360987552,1747183843261,-619.66,0.00010958,2]
[360987554,1747183843271,-936.81,0.00010958,2]
[360987556,1747183843280,-400.0,0.00010958,2]
[360987558,1747183843289,-1003.15,0.00010958,2]
[360987560,1747183843298,-400.0,0.00010958,2]
[360987562,1747183843307,-400.0,0.00010958,2]
[360987564,1747183843317,-528.09816841,0.00010958,2]
[360987566,1747183843326,-1343.91,0.00010958,2]
[360987568,1747183843335,-285.62398359,0.00010958,2]
[360987570,1747183843344,-485.95,0.00010958,2]
[360987572,1747183843353,-495.92,0.00010958,2]
[360987574,1747183843362,-545.15963195,0.00010958,2]
[360987576,1747183843371,-400.0,0.00010958,2]
[360987578,1747183843382,-3435.78,0.00010958,2]
[360987580,1747183843392,-400.0,0.00010958,2]
[360987582,1747183843401,-400.0,0.00010958,2]
[360987584,1747183843411,-400.0,0.00010958,2]
[360987586,1747183843420,-400.0,0.00010958,2]
[360987588,1747183843430,-400.0,0.00010958,2]
[360987590,1747183843439,-265.45580489,0.00010958,2]
[360987592,1747183843448,-444.62,0.00010958,2]
[360987594,1747183843458,-472.29,0.00010958,2]
[360987596,1747183843467,-359.00242174,0.00010958,2]
[360987598,1747183843477,-400.0,0.00010958,2]
[360987600,1747183843486,-503.8866693,0.00010958,2]
[360987602,1747183843495,-400.0,0.00010958,2]
[360987604,1747183843504,-400.0,0.00010958,2]
[360987606,1747183843514,-400.0,0.00010958,2]
[360987608,1747183843523,-400.0,0.00010958,2]
[360987610,1747183843533,-400.0,0.00010958,2]
[360987612,1747183843542,-400.0,0.00010958,2]
[360987614,1747183843551,-539.55,0.00010958,2]
[360987616,1747183843560,-1032.68,0.00010958,2]
[360987618,1747183843569,-400.0,0.00010958,2]
[360987620,1747183843578,-400.0,0.00010958,2]
[360987621,1747183843599,-1604.65,0.00010958,2]
[360987623,1747183843608,-400.0,0.00010958,2]
[360987625,1747183843617,-1774.6,0.00010958,2]
[360987627,1747183843627,-400.0,0.00010958,2]
[360987629,1747183843636,-400.0,0.00010958,2]
[360987631,1747183843645,-1889.34,0.00010958,2]
[360987633,1747183843655,-400.0,0.00010958,2]
[360987635,1747183843664,-400.0,0.00010958,2]
[360987637,1747183843673,-1410.9,0.00010958,2]
[360987639,1747183843683,-440.42,0.00010958,2]
[360987641,1747183843692,-400.0,0.00010958,2]
[360987643,1747183843701,-400.0,0.00010958,2]
[360987645,1747183843711,-400.0,0.00010958,2]
[360987647,1747183843720,-400.0,0.00010958,2]
[360987649,1747183843730,-908.59,0.00010958,2]
[360987651,1747183843742,-474.18479511,0.00010958,2]
[360987653,1747183843751,-1092.76,0.00010958,2]
[360987655,1747183843760,-400.0,0.00010958,2]
[360987657,1747183843769,-400.0,0.00010958,2]
[360987659,1747183843778,-542.65,0.00010958,2]
[360987661,1747183843787,-400.0,0.00010958,2]
[360987664,1747183843796,-471.02,0.00010958,2]
[360987666,1747183843805,-529.0,0.00010958,2]
[360987668,1747183843815,-400.0,0.00010958,2]
[360987670,1747183843824,-400.0,0.00010958,2]
[360987672,1747183843833,-400.0,0.00010958,2]
[360987674,1747183843842,-400.0,0.00010958,2]
[360987676,1747183843851,-400.0,0.00010958,2]
[360987678,1747183843860,-400.0,0.00010958,2]
[360987680,1747183843869,-2018.2,0.00010958,2]
[360987682,1747183843878,-400.0,0.00010958,2]
[360987684,1747183843886,-400.0,0.00010958,2]
[360987685,1747183843896,-400.0,0.00010958,2]
[360987686,1747183843905,-400.0,0.00010958,2]
[360987687,1747183843914,-400.0,0.00010958,2]
[360987688,1747183843923,-1256.63,0.00010958,2]
[360987689,1747183843932,-526.75247352,0.00010958,2]
[360987690,1747183843941,-400.0,0.00010958,2]
[360987691,1747183843950,-1772.06,0.00010958,2]
[360987692,1747183843959,-400.0,0.00010958,2]
[360987693,1747183843969,-521.67,0.00010958,2]
[360987694,1747183843978,-400.0,0.00010958,2]
[360987695,1747183843988,-4511.54,0.00010958,2]
[360987696,1747183843996,-246.00017925,0.00010958,2]
[360987697,1747183844006,-229.30776169,0.00010958,2]
[360987698,1747183844015,-400.0,0.00010958,2]
[360987699,1747183844023,-400.0,0.00010958,2]
[360987700,1747183844032,-400.0,0.00010958,2]
[360987701,1747183844041,-413.35925899,0.00010958,2]
[360987702,1747183844050,-624.59,0.00010958,2]
[360987703,1747183844059,-1159.91,0.00010958,2]
[360987705,1747183844068,-400.0,0.00010958,2]
[360987707,1747183844077,-400.0,0.00010958,2]
[360987708,1747183844086,-400.0,0.00010958,2]
[360987710,1747183844095,-524.45,0.00010958,2]
[360987712,1747183844105,-400.0,0.00010958,2]
[360987714,1747183844114,-200.0,0.00010958,2]
[360987716,1747183844124,-623.77,0.00010958,2]
[360987718,1747183844133,-400.0,0.00010958,2]
[360987720,1747183844142,-774.34,0.00010958,2]
[360987722,1747183844151,-696.25,0.00010958,2]
[360987724,1747183844161,-400.0,0.00010958,2]
[360987726,1747183844170,-1471.07,0.00010958,2]
[360987728,1747183844179,-834.21,0.00010958,2]
[360987730,1747183844188,-400.0,0.00010958,2]
[360987732,1747183844197,-400.0,0.00010958,2]
[360987734,1747183844207,-400.0,0.00010958,2]
[360987736,1747183844216,-1352.76,0.00010958,2]
[360987738,1747183844225,-468.63,0.00010958,2]
[360987740,1747183844235,-400.0,0.00010958,2]
[360987742,1747183844244,-400.0,0.00010958,2]
[360987744,1747183844254,-400.0,0.00010958,2]
[360987746,1747183844264,-1706.21,0.00010958,2]
[360987748,1747183844273,-400.0,0.00010958,2]
[360987750,1747183844282,-400.0,0.00010958,2]
[360987752,1747183844292,-400.0,0.00010958,2]
[360987753,1747183844301,-1184.2,0.00010958,2]
[360987755,1747183844311,-400.0,0.00010958,2]
[360987757,1747183844320,-832.1,0.00010958,2]
[360987759,1747183844330,-400.0,0.00010958,2]
[360987761,1747183844340,-400.0,0.00010958,2]
[360987763,1747183844350,-3668.25,0.00010958,2]
[360987765,1747183844359,-591.14,0.00010958,2]
[360987767,1747183844369,-400.0,0.00010958,2]
[360987769,1747183844379,-400.0,0.00010958,2]
[360987771,1747183844389,-400.0,0.00010958,2]
[360987773,1747183844398,-400.0,0.00010958,2]
[360987775,1747183844408,-400.0,0.00010958,2]
[360987777,1747183844417,-1396.15,0.00010958,2]
[360987779,1747183844427,-400.0,0.00010958,2]
[360987781,1747183844437,-250.0,0.00010958,2]
[360987783,1747183844446,-509.7,0.00010958,2]
[360987785,1747183844455,-400.0,0.00010958,2]
[360987787,1747183844465,-610.06,0.00010958,2]
[360987789,1747183844475,-400.0,0.00010958,2]
[360987791,1747183844484,-400.0,0.00010958,2]
[360987793,1747183844494,-820.2,0.00010958,2]
[360987795,1747183844503,-400.0,0.00010958,2]
[360987796,1747183844513,-400.0,0.00010958,2]
[360987799,1747183844522,-400.0,0.00010958,2]
[360987800,1747183844532,-815.3,0.00010958,2]
[360987802,1747183844541,-400.0,0.00010958,2]
[360987804,1747183844551,-1000.0,0.00010958,2]
[360987806,1747183844561,-176.27235592,0.00010958,2]
[360987808,1747183844570,-400.0,0.00010958,2]
[360987810,1747183844580,-581.91,0.00010958,2]
[360987812,1747183844589,-400.0,0.00010958,2]
[360987814,1747183844599,-1387.61,0.00010958,2]
[360987816,1747183844608,-400.0,0.00010958,2]
[360987818,1747183844618,-400.0,0.00010958,2]
[360987820,1747183844627,-453.44,0.00010958,2]
[360987822,1747183844637,-454.66696612,0.00010958,2]
[360987824,1747183844647,-235.45125041,0.00010958,2]
[360987826,1747183844662,-400.0,0.00010958,2]
[360987828,1747183844679,-400.0,0.00010958,2]
[360987830,1747183844689,-1997.91,0.00010958,2]
[360987832,1747183844703,-792.76,0.00010958,2]
[360987834,1747183844713,-400.0,0.00010958,2]
[360987836,1747183844723,-406.01588332,0.00010958,2]
[360987838,1747183844734,-400.0,0.00010958,2]
[360987840,1747183844743,-707.32,0.00010958,2]
[360987842,1747183844753,-400.0,0.00010958,2]
[360987844,1747183844762,-400.0,0.00010958,2]
[360987846,1747183844771,-408.96,0.00010958,2]
[360987848,1747183844781,-400.0,0.00010958,2]
[360987850,1747183844791,-400.0,0.00010958,2]
[360987852,1747183844800,-400.0,0.00010958,2]
[360987854,1747183844810,-400.0,0.00010958,2]
[360987856,1747183844819,-400.0,0.00010958,2]
[360987858,1747183844828,-330.3,0.00010958,2]
[360987860,1747183844837,-400.0,0.00010958,2]
[360987862,1747183844847,-1030.12,0.00010958,2]
[360987864,1747183844856,-400.0,0.00010958,2]
[360987866,1747183844865,-400.0,0.00010958,2]
[360987868,1747183844875,-400.0,0.00010958,2]
[360987870,1747183844885,-577.54,0.00010958,2]
[360987872,1747183844894,-400.0,0.00010958,2]
[360987873,1747183844903,-400.0,0.00010958,2]
[360987875,1747183844913,-400.0,0.00010958,2]
[360987877,1747183844922,-164.49926726,0.00010958,2]
[360987879,1747183844932,-564.42,0.00010958,2]
[360987881,1747183844941,-537.85,0.00010958,2]
[360987883,1747183844951,-400.0,0.00010958,2]
[360987885,1747183844960,-400.0,0.00010958,2]
[360987887,1747183844969,-400.0,0.00010958,2]
[360987889,1747183844979,-415.84294251,0.00010958,2]
[360987891,1747183844989,-400.0,0.00010958,2]
[360987893,1747183844998,-1635.97,0.00010958,2]
[360987895,1747183845008,-2222.17,0.00010958,2]
[360987897,1747183845018,-400.0,0.00010958,2]
[360987899,1747183845028,-400.0,0.00010958,2]
[360987901,1747183845037,-878.48,0.00010958,2]
[360987903,1747183845047,-400.0,0.00010958,2]
[360987905,1747183845056,-1213.86,0.00010958,2]
[360987907,1747183845065,-343.3509349,0.00010958,2]
[360987909,1747183845074,-456.28,0.00010958,2]
[360987911,1747183845083,-400.0,0.00010958,2]
[360987913,1747183845092,-400.0,0.00010958,2]
[360987915,1747183845101,-1180.37,0.00010958,2]
[360987917,1747183845110,-400.0,0.00010958,2]
[360987918,1747183845119,-400.0,0.00010958,2]
[360987920,1747183845129,-400.0,0.00010958,2]
[360987922,1747183845139,-400.0,0.00010958,2]
[360987925,1747183845149,-400.0,0.00010958,2]
[360987927,1747183845159,-400.0,0.00010958,2]
[360987928,1747183845168,-400.0,0.00010958,2]
[360987930,1747183845178,-1064.69,0.00010958,2]
[360987932,1747183845188,-400.0,0.00010958,2]
[360987934,1747183845198,-400.0,0.00010958,2]
[360987936,1747183845207,-400.0,0.00010958,2]
[360987938,1747183845217,-783.26,0.00010958,2]
[360987940,1747183845226,-400.0,0.00010958,2]
[360987942,1747183845235,-400.0,0.00010958,2]
[360987944,1747183845245,-526.23,0.00010958,2]
[360987946,1747183845254,-622.33,0.00010958,2]
[360987948,1747183845264,-400.0,0.00010958,2]
[360987950,1747183845273,-400.0,0.00010958,2]
[360987952,1747183845283,-400.0,0.00010958,2]
[360987954,1747183845292,-400.0,0.00010958,2]
[360987956,1747183845301,-400.0,0.00010958,2]
[360987958,1747183845310,-3329.62,0.00010958,2]
[360987960,1747183845320,-400.0,0.00010958,2]
[360987962,1747183845329,-1299.34,0.00010958,2]
[360987964,1747183845339,-400.0,0.00010958,2]
[360987966,1747183845348,-400.0,0.00010958,2]
[360987968,1747183845357,-400.0,0.00010958,2]
[360987970,1747183845367,-400.0,0.00010958,2]
[360987972,1747183845376,-1115.45,0.00010958,2]
[360987974,1747183845387,-506.29949374,0.00010958,2]
[360987976,1747183845396,-400.0,0.00010958,2]
[360987978,1747183845406,-503.19,0.00010958,2]
[360987980,1747183845416,-479.07,0.00010958,2]
[360987982,1747183845426,-400.0,0.00010958,2]
[360987984,1747183845435,-400.0,0.00010958,2]
[360987986,1747183845445,-400.0,0.00010958,2]
[360987988,1747183845455,-400.0,0.00010958,2]
[360987990,1747183845465,-400.0,0.00010958,2]
[360987992,1747183845474,-400.0,0.00010958,2]
[360987994,1747183845484,-400.0,0.00010958,2]
[360987996,1747183845493,-1010.99,0.00010958,2]
[360987998,1747183845503,-2593.08,0.00010958,2]
[360988000,1747183845512,-400.0,0.00010958,2]
[360988002,1747183845522,-600.12,0.00010958,2]
[360988004,1747183845531,-400.0,0.00010958,2]
[360988006,1747183845541,-400.0,0.00010958,2]
[360988008,1747183845551,-891.88,0.00010958,2]
[360988010,1747183845561,-300.0,0.00010958,2]
[360988012,1747183845570,-400.0,0.00010958,2]
[360988013,1747183845579,-500.0,0.00010958,2]
[360988016,1747183845590,-1293.35,0.00010958,2]
[360988018,1747183845600,-400.0,0.00010958,2]
[360988019,1747183845609,-400.0,0.00010958,2]
[360988021,1747183845620,-400.0,0.00010958,2]
[360988023,1747183845629,-400.0,0.00010958,2]
[360988025,1747183845639,-400.0,0.00010958,2]
[360988028,1747183845651,-400.0,0.00010958,2]
[360988029,1747183845660,-400.0,0.00010958,2]
[360988031,1747183845670,-589.91,0.00010958,2]
[360988033,1747183845680,-400.0,0.00010958,2]
[360988035,1747183845689,-400.0,0.00010958,2]
[360988037,1747183845699,-400.0,0.00010958,2]
[360988039,1747183845709,-400.0,0.00010958,2]
[360988041,1747183845719,-245.67713088,0.00010958,2]
[360988044,1747183845729,-400.0,0.00010958,2]
[360988046,1747183845742,-1992.31,0.00010958,2]
[360988063,1747183845753,-499.91116385,0.00010958,2]
[360988065,1747183845924,-400.0,0.00010958,2]
[360988067,1747183845933,-400.0,0.00010958,2]
[360988069,1747183845943,-400.0,0.00010958,2]
[360988071,1747183845952,-23470.55,0.00010958,2]
[360988073,1747183845961,-400.77840812,0.00010958,2]
[360988075,1747183845971,-400.0,0.00010958,2]
[360988077,1747183845981,-400.0,0.00010958,2]
[360988079,1747183845991,-400.0,0.00010958,2]
[360988081,1747183846001,-400.0,0.00010958,2]
[360988083,1747183846010,-427.87,0.00010958,2]
[360988085,1747183846019,-400.0,0.00010958,2]
[360988087,1747183846029,-11462.35,0.00010958,2]
[360988089,1747183846038,-400.0,0.00010958,2]
[360988091,1747183846048,-400.0,0.00010958,2]
[360988093,1747183846057,-525.74365468,0.00010958,2]
[360988095,1747183846067,-400.0,0.00010958,2]
[360988097,1747183846076,-871.62,0.00010958,2]
[360988099,1747183846086,-401.61890349,0.00010958,2]
[360988101,1747183846095,-400.0,0.00010958,2]
[360988103,1747183846104,-400.0,0.00010958,2]
[360988105,1747183846113,-400.0,0.00010958,2]
[360988107,1747183846123,-400.0,0.00010958,2]
[360988109,1747183846134,-400.0,0.00010958,2]
[360988111,1747183846144,-1256.15,0.00010958,2]
[360988113,1747183846153,-500.0,0.00010958,2]
[360988115,1747183846163,-400.0,0.00010958,2]
[360988117,1747183846172,-400.0,0.00010958,2]
[360988119,1747183846181,-400.0,0.00010958,2]
[360988121,1747183846191,-400.0,0.00010958,2]
[360988122,1747183846199,-400.0,0.00010958,2]
[360988124,1747183846209,-400.0,0.00010958,2]
[360988126,1747183846218,-1802.97,0.00010958,2]
[360988128,1747183846227,-400.0,0.00010958,2]
[360988130,1747183846237,-520.42,0.00010958,2]
[360988132,1747183846247,-529.74,0.00010958,2]